[Event "Titled Tuesday Blitz June 13 Early 2023"]
[White "Becerra, Juan David"]
[Black "LangesNasenhaar"]
[WhiteFideId "4404998"]
[WhiteElo "2304"]
[BlackElo "2470"]
[Result "1-0"]
[Round "8"]
[TimeControl "180+2"]
[Date "2023.06.13"]
[WhiteClock "0:00:10"]
[BlackClock "0:00:07"]
[Board "94"]

1. e4 {[%clk 0:03:00]}  d6 {[%clk 0:02:59]} 2. d4 {[%clk 0:03:00]}  Nf6 {[%clk 0:02:59]} 3. Nc3 {[%clk 0:03:00]}  Nbd7 {[%clk 0:03:00]} 4. Nge2 {[%clk 0:02:50]}  e5 {[%clk 0:03:00]} 5. h3 {[%clk 0:02:49]}  Be7 {[%clk 0:02:59]} 6. g4 {[%clk 0:02:49]}  h6 {[%clk 0:02:58]} 7. Bg2 {[%clk 0:02:49]}  c6 {[%clk 0:02:59]} 8. O-O {[%clk 0:02:48]}  b5 {[%clk 0:03:00]} 9. a3 {[%clk 0:02:44]}  O-O {[%clk 0:02:58]} 10. f4 {[%clk 0:02:38]}  exf4 {[%clk 0:02:54]} 11. Bxf4 {[%clk 0:02:35]}  Bb7 {[%clk 0:02:49]} 12. Qd2 {[%clk 0:02:34]}  a5 {[%clk 0:02:40]} 13. Ng3 {[%clk 0:02:29]}  b4 {[%clk 0:02:35]} 14. Nce2 {[%clk 0:02:26]}  Ne8 {[%clk 0:02:04]} 15. axb4 {[%clk 0:02:16]}  axb4 {[%clk 0:02:02]} 16. Rxa8 {[%clk 0:02:17]}  Qxa8 {[%clk 0:01:56]} 17. Nf5 {[%clk 0:02:16]}  Qd8 {[%clk 0:01:42]} 18. Qxb4 {[%clk 0:02:13]}  Ba6 {[%clk 0:01:42]} 19. Rf2 {[%clk 0:01:53]}  c5 {[%clk 0:01:42]} 20. dxc5 {[%clk 0:01:45]}  Nxc5 {[%clk 0:01:31]} 21. Neg3 {[%clk 0:01:36]}  Bf6 {[%clk 0:01:22]} 22. Rd2 {[%clk 0:01:31]}  Ne6 {[%clk 0:01:10]} 23. Bxd6 {[%clk 0:01:14]}  Nxd6 {[%clk 0:01:06]} 24. Rxd6 {[%clk 0:01:07]}  Qc8 {[%clk 0:00:51]} 25. e5 {[%clk 0:01:03]}  Bg5 {[%clk 0:00:44]} 26. Ne4 {[%clk 0:00:47]}  Bd8 {[%clk 0:00:42]} 27. Rc6 {[%clk 0:00:38]}  Qa8 {[%clk 0:00:37]} 28. Kh2 {[%clk 0:00:20]}  Nf4 {[%clk 0:00:28]} 29. Bf3 {[%clk 0:00:19]}  Qa7 {[%clk 0:00:22]} 30. Qc5 {[%clk 0:00:18]}  Qb7 {[%clk 0:00:19]} 31. b4 {[%clk 0:00:17]}  Ne6 {[%clk 0:00:18]} 32. Rxe6 {[%clk 0:00:17]}  fxe6 {[%clk 0:00:18]} 33. Nf6+ {[%clk 0:00:17]}  Bxf6 {[%clk 0:00:15]} 34. Bxb7 {[%clk 0:00:17]}  Bxb7 {[%clk 0:00:13]} 35. exf6 {[%clk 0:00:16]}  Rxf6 {[%clk 0:00:13]} 36. Ne7+ {[%clk 0:00:12]}  Kf7 {[%clk 0:00:11]} 37. Nc6 {[%clk 0:00:12]}  h5 {[%clk 0:00:07]} 38. Qe7+ {[%clk 0:00:12]}  Kg6 {[%clk 0:00:07]} 39. Qxb7 {[%clk 0:00:13]}  hxg4 {[%clk 0:00:07]} 40. hxg4 {[%clk 0:00:13]}  Rf2+ {[%clk 0:00:08]} 41. Kg3 {[%clk 0:00:13]}  Rxc2 {[%clk 0:00:09]} 42. Qe7 {[%clk 0:00:11]}  Rc3+ {[%clk 0:00:09]} 43. Kh4 {[%clk 0:00:11]}  Re3 {[%clk 0:00:09]} 44. Qe8+ {[%clk 0:00:10]}  Kf6 {[%clk 0:00:09]} 45. Qf8+ {[%clk 0:00:10]}  Kg6 {[%clk 0:00:09]} 46. Ne7+ {[%clk 0:00:10]}  Kh7 {[%clk 0:00:08]} 47. Qf7 {[%clk 0:00:10]}  Re1 {[%clk 0:00:07]} 48. Qh5# {[%clk 0:00:10]} 1-0


[Site "https://www.chess.com"]

[Event "Titled Tuesday Blitz June 13 Early 2023"]
[White "Czerw, Dawid"]
[Black "Vyatkin, Dmitry"]
[WhiteFideId "1145746"]
[BlackFideId "4171900"]
[WhiteElo "2144"]
[BlackElo "2279"]
[Result "0-1"]
[Round "8"]
[TimeControl "180+2"]
[Date "2023.06.13"]
[WhiteClock "0:00:13"]
[BlackClock "0:00:29"]
[Board "95"]

1. e4 {[%clk 0:03:00]}  e6 {[%clk 0:03:00]} 2. d4 {[%clk 0:03:00]}  d5 {[%clk 0:03:00]} 3. Nc3 {[%clk 0:03:00]}  Nf6 {[%clk 0:02:59]} 4. Bg5 {[%clk 0:02:58]}  Be7 {[%clk 0:02:59]} 5. e5 {[%clk 0:02:58]}  Nfd7 {[%clk 0:02:58]} 6. h4 {[%clk 0:02:58]}  h6 {[%clk 0:02:55]} 7. Qh5 {[%clk 0:02:58]}  g6 {[%clk 0:02:51]} 8. Bxe7 {[%clk 0:02:58]}  Qxe7 {[%clk 0:02:49]} 9. Qg4 {[%clk 0:02:58]}  a6 {[%clk 0:02:46]} 10. h5 {[%clk 0:02:56]}  g5 {[%clk 0:02:46]} 11. f4 {[%clk 0:02:55]}  c5 {[%clk 0:02:33]} 12. dxc5 {[%clk 0:02:51]}  Nc6 {[%clk 0:02:30]} 13. Nf3 {[%clk 0:02:46]}  Qxc5 {[%clk 0:02:24]} 14. fxg5 {[%clk 0:02:14]}  Qe3+ {[%clk 0:02:20]} 15. Be2 {[%clk 0:02:13]}  Ndxe5 {[%clk 0:02:14]} 16. Nxe5 {[%clk 0:01:53]}  Nxe5 {[%clk 0:02:14]} 17. Qb4 {[%clk 0:01:42]}  Qxg5 {[%clk 0:01:54]} 18. Na4 {[%clk 0:01:23]}  Qg3+ {[%clk 0:01:43]} 19. Kd1 {[%clk 0:01:10]}  Bd7 {[%clk 0:01:18]} 20. Nb6 {[%clk 0:01:02]}  Rd8 {[%clk 0:01:18]} 21. Qd4 {[%clk 0:00:42]}  Bc6 {[%clk 0:01:05]} 22. Re1 {[%clk 0:00:33]}  Rg8 {[%clk 0:00:59]} 23. Bxa6 {[%clk 0:00:31]}  Nc4 {[%clk 0:00:36]} 24. Qc5 {[%clk 0:00:14]}  Qg4+ {[%clk 0:00:29]} 25. Kc1 {[%clk 0:00:14]}  Qf4+ {[%clk 0:00:29]} 26. Kb1 {[%clk 0:00:13]}  Nd2+ {[%clk 0:00:28]} 27. Kc1 {[%clk 0:00:12]}  Nb3+ {[%clk 0:00:28]} 28. Kb1 {[%clk 0:00:12]}  Qc1+ {[%clk 0:00:29]} 29. Rxc1 {[%clk 0:00:13]}  Nd2# {[%clk 0:00:29]} 0-1


[Site "https://www.chess.com"]

[Event "Titled Tuesday Blitz June 13 Early 2023"]
[White "UNSTOPPABLE_LEGEND"]
[Black "Skliarov, Viktor"]
[BlackFideId "14106736"]
[WhiteElo "2461"]
[BlackElo "2317"]
[Result "1-0"]
[Round "8"]
[TimeControl "180+2"]
[Date "2023.06.13"]
[WhiteClock "0:00:51"]
[BlackClock "0:00:02"]
[Board "96"]

1. d4 {[%clk 0:03:00]}  Nf6 {[%clk 0:02:59]} 2. c4 {[%clk 0:03:00]}  e6 {[%clk 0:02:59]} 3. Nf3 {[%clk 0:03:00]}  c5 {[%clk 0:02:59]} 4. d5 {[%clk 0:02:59]}  exd5 {[%clk 0:02:59]} 5. cxd5 {[%clk 0:02:59]}  d6 {[%clk 0:03:00]} 6. Nc3 {[%clk 0:02:59]}  g6 {[%clk 0:02:59]} 7. e4 {[%clk 0:02:57]}  Bg7 {[%clk 0:02:58]} 8. Be2 {[%clk 0:02:56]}  O-O {[%clk 0:02:53]} 9. O-O {[%clk 0:02:56]}  Re8 {[%clk 0:02:51]} 10. Nd2 {[%clk 0:02:41]}  a6 {[%clk 0:02:49]} 11. a4 {[%clk 0:02:39]}  Nbd7 {[%clk 0:02:49]} 12. Nc4 {[%clk 0:02:39]}  Nb6 {[%clk 0:02:41]} 13. Nxb6 {[%clk 0:02:23]}  Qxb6 {[%clk 0:02:40]} 14. a5 {[%clk 0:02:20]}  Qc7 {[%clk 0:02:37]} 15. Qc2 {[%clk 0:02:14]}  b5 {[%clk 0:02:26]} 16. axb6 {[%clk 0:02:13]}  Qxb6 {[%clk 0:02:26]} 17. Bf4 {[%clk 0:02:10]}  Bd7 {[%clk 0:02:09]} 18. Ra2 {[%clk 0:02:03]}  a5 {[%clk 0:01:24]} 19. b3 {[%clk 0:01:50]}  Ng4 {[%clk 0:00:53]} 20. h3 {[%clk 0:01:29]}  Ne5 {[%clk 0:00:53]} 21. Na4 {[%clk 0:01:27]}  Qc7 {[%clk 0:00:35]} 22. Bd2 {[%clk 0:01:21]}  f5 {[%clk 0:00:35]} 23. f4 {[%clk 0:01:14]}  Nf7 {[%clk 0:00:34]} 24. exf5 {[%clk 0:01:03]}  Rxe2 {[%clk 0:00:23]} 25. fxg6 {[%clk 0:01:03]}  hxg6 {[%clk 0:00:23]} 26. Qxg6 {[%clk 0:01:03]}  Rae8 {[%clk 0:00:19]} 27. Bc3 {[%clk 0:01:00]}  Ne5 {[%clk 0:00:06]} 28. Bxe5 {[%clk 0:00:54]}  R2xe5 {[%clk 0:00:04]} 29. fxe5 {[%clk 0:00:54]}  Rxe5 {[%clk 0:00:04]} 30. Raf2 {[%clk 0:00:53]}  Qd8 {[%clk 0:00:02]} 31. Rf7 {[%clk 0:00:50]}  Rg5 {[%clk 0:00:02]} 32. Rxg7+ {[%clk 0:00:50]}  Kh8 {[%clk 0:00:02]} 33. Qh7# {[%clk 0:00:51]} 1-0


[Site "https://www.chess.com"]

[Event "Titled Tuesday Blitz June 13 Early 2023"]
[White "Rios Escobar, Adan"]
[Black "Girya, Olga"]
[WhiteFideId "3403645"]
[BlackFideId "4195752"]
[WhiteElo "2456"]
[BlackElo "2263"]
[Result "1-0"]
[Round "8"]
[TimeControl "180+2"]
[Date "2023.06.13"]
[WhiteClock "0:00:03"]
[BlackClock "0:00:00"]
[Board "97"]

1. d4 {[%clk 0:02:59]}  Nf6 {[%clk 0:02:59]} 2. g3 {[%clk 0:02:54]}  d5 {[%clk 0:02:58]} 3. Nf3 {[%clk 0:02:52]}  Bf5 {[%clk 0:02:56]} 4. c4 {[%clk 0:02:50]}  c6 {[%clk 0:02:54]} 5. Nc3 {[%clk 0:02:50]}  e6 {[%clk 0:02:53]} 6. Nh4 {[%clk 0:02:51]}  Bg4 {[%clk 0:02:43]} 7. h3 {[%clk 0:02:49]}  Bh5 {[%clk 0:02:43]} 8. g4 {[%clk 0:02:50]}  Ne4 {[%clk 0:02:30]} 9. Nxe4 {[%clk 0:02:45]}  dxe4 {[%clk 0:02:17]} 10. Qb3 {[%clk 0:02:41]}  b6 {[%clk 0:02:03]} 11. gxh5 {[%clk 0:02:35]}  Qxh4 {[%clk 0:02:02]} 12. Rg1 {[%clk 0:02:22]}  Qxh5 {[%clk 0:02:00]} 13. Be3 {[%clk 0:02:21]}  Nd7 {[%clk 0:01:52]} 14. O-O-O {[%clk 0:02:20]}  g6 {[%clk 0:01:42]} 15. d5 {[%clk 0:02:08]}  Bh6 {[%clk 0:01:04]} 16. dxe6 {[%clk 0:02:04]}  fxe6 {[%clk 0:00:57]} 17. Kb1 {[%clk 0:01:44]}  O-O-O {[%clk 0:00:46]} 18. Bg2 {[%clk 0:01:26]}  Bxe3 {[%clk 0:00:38]} 19. Qxe3 {[%clk 0:01:21]}  Nf6 {[%clk 0:00:37]} 20. f3 {[%clk 0:00:56]}  Qe5 {[%clk 0:00:22]} 21. fxe4 {[%clk 0:00:42]}  Rxd1+ {[%clk 0:00:20]} 22. Rxd1 {[%clk 0:00:41]}  Rd8 {[%clk 0:00:18]} 23. Rxd8+ {[%clk 0:00:41]}  Kxd8 {[%clk 0:00:18]} 24. Bf3 {[%clk 0:00:39]}  Kc7 {[%clk 0:00:18]} 25. Qa3 {[%clk 0:00:35]}  a5 {[%clk 0:00:17]} 26. Qe7+ {[%clk 0:00:34]}  Nd7 {[%clk 0:00:17]} 27. Qxh7 {[%clk 0:00:28]}  Qg3 {[%clk 0:00:17]} 28. Qh6 {[%clk 0:00:19]}  a4 {[%clk 0:00:09]} 29. Bg4 {[%clk 0:00:18]}  a3 {[%clk 0:00:08]} 30. bxa3 {[%clk 0:00:15]}  Nc5 {[%clk 0:00:06]} 31. Qg7+ {[%clk 0:00:13]}  Kd6 {[%clk 0:00:06]} 32. e5+ {[%clk 0:00:10]}  Qxe5 {[%clk 0:00:05]} 33. Qxe5+ {[%clk 0:00:10]}  Kxe5 {[%clk 0:00:06]} 34. Kc2 {[%clk 0:00:09]}  Kd4 {[%clk 0:00:06]} 35. Bf3 {[%clk 0:00:08]}  Kxc4 {[%clk 0:00:05]} 36. Bxc6 {[%clk 0:00:08]}  g5 {[%clk 0:00:06]} 37. a4 {[%clk 0:00:07]}  Kd4 {[%clk 0:00:06]} 38. Kd2 {[%clk 0:00:05]}  e5 {[%clk 0:00:06]} 39. a3 {[%clk 0:00:04]}  e4 {[%clk 0:00:06]} 40. Bb5 {[%clk 0:00:03]}  e3+ {[%clk 0:00:06]} 41. Ke1 {[%clk 0:00:03]}  Nb3 {[%clk 0:00:06]} 42. Bd3 {[%clk 0:00:02]}  Na5 {[%clk 0:00:06]} 43. Bb5 {[%clk 0:00:03]}  Nb7 {[%clk 0:00:05]} 44. Kf1 {[%clk 0:00:03]}  Kc3 {[%clk 0:00:05]} 45. Kg2 {[%clk 0:00:03]}  Kd2 {[%clk 0:00:05]} 46. Kf3 {[%clk 0:00:04]}  Nc5 {[%clk 0:00:05]} 47. Kg4 {[%clk 0:00:04]}  Nb3 {[%clk 0:00:04]} 48. Kxg5 {[%clk 0:00:03]}  Nd4 {[%clk 0:00:04]} 49. Bc4 {[%clk 0:00:04]}  Nxe2 {[%clk 0:00:04]} 50. h4 {[%clk 0:00:04]}  Ng3 {[%clk 0:00:03]} 51. Kg4 {[%clk 0:00:03]}  Ne4 {[%clk 0:00:02]} 52. Kf4 {[%clk 0:00:02]}  Nd6 {[%clk 0:00:02]} 53. Bf1 {[%clk 0:00:01]}  e2 {[%clk 0:00:03]} 54. Bxe2 {[%clk 0:00:02]}  Kxe2 {[%clk 0:00:04]} 55. Ke5 {[%clk 0:00:02]}  Nf7+ {[%clk 0:00:03]} 56. Kd5 {[%clk 0:00:03]}  Kd3 {[%clk 0:00:04]} 57. Kc6 {[%clk 0:00:03]}  Kc4 {[%clk 0:00:02]} 58. Kxb6 {[%clk 0:00:04]}  Kd5 {[%clk 0:00:03]} 59. a5 {[%clk 0:00:04]}  Nd6 {[%clk 0:00:02]} 60. h5 {[%clk 0:00:05]}  Nc4+ {[%clk 0:00:02]} 61. Kb5 {[%clk 0:00:04]}  Nxa3+ {[%clk 0:00:02]} 62. Kb4 {[%clk 0:00:04]}  Nc2+ {[%clk 0:00:02]} 63. Kc3 {[%clk 0:00:04]}  Nd4 {[%clk 0:00:02]} 64. Kb4 {[%clk 0:00:03]}  Nc6+ {[%clk 0:00:02]} 65. Kb5 {[%clk 0:00:03]}  Nd4+ {[%clk 0:00:00]} 66. Kb6 {[%clk 0:00:03]} 1-0


[Site "https://www.chess.com"]

[Event "Titled Tuesday Blitz June 13 Early 2023"]
[White "Kubicka, Anna"]
[Black "Lopez Idarraga, Daniel Eduardo"]
[WhiteFideId "1152254"]
[BlackFideId "4405501"]
[WhiteElo "2144"]
[BlackElo "1980"]
[Result "1-0"]
[Round "8"]
[TimeControl "180+2"]
[Date "2023.06.13"]
[WhiteClock "0:00:19"]
[BlackClock "0:00:06"]
[Board "101"]

1. e4 {[%clk 0:02:55]}  c5 {[%clk 0:02:59]} 2. Ne2 {[%clk 0:02:55]}  Nc6 {[%clk 0:02:59]} 3. g3 {[%clk 0:02:54]}  g6 {[%clk 0:03:00]} 4. Bg2 {[%clk 0:02:55]}  Bg7 {[%clk 0:03:00]} 5. O-O {[%clk 0:02:56]}  e5 {[%clk 0:03:00]} 6. Nec3 {[%clk 0:02:53]}  Nge7 {[%clk 0:03:00]} 7. Nd5 {[%clk 0:02:53]}  O-O {[%clk 0:03:00]} 8. Nbc3 {[%clk 0:02:53]}  d6 {[%clk 0:03:01]} 9. d3 {[%clk 0:02:52]}  Be6 {[%clk 0:03:01]} 10. Bg5 {[%clk 0:02:51]}  f6 {[%clk 0:03:00]} 11. Be3 {[%clk 0:02:51]}  Bxd5 {[%clk 0:03:00]} 12. exd5 {[%clk 0:02:49]}  Nd4 {[%clk 0:03:00]} 13. Ne2 {[%clk 0:02:42]}  Nef5 {[%clk 0:02:58]} 14. c3 {[%clk 0:02:35]}  Nxe2+ {[%clk 0:02:57]} 15. Qxe2 {[%clk 0:02:36]}  Nxe3 {[%clk 0:02:56]} 16. fxe3 {[%clk 0:02:36]}  f5 {[%clk 0:02:56]} 17. e4 {[%clk 0:02:30]}  Qg5 {[%clk 0:02:52]} 18. exf5 {[%clk 0:02:15]}  Rxf5 {[%clk 0:02:00]} 19. Be4 {[%clk 0:02:10]}  Rxf1+ {[%clk 0:01:59]} 20. Rxf1 {[%clk 0:02:09]}  Rf8 {[%clk 0:02:00]} 21. Rxf8+ {[%clk 0:02:01]}  Bxf8 {[%clk 0:02:00]} 22. Kg2 {[%clk 0:01:54]}  Bh6 {[%clk 0:02:00]} 23. h4 {[%clk 0:01:35]}  Qd2 {[%clk 0:01:58]} 24. Qxd2 {[%clk 0:01:35]}  Bxd2 {[%clk 0:01:59]} 25. Kh3 {[%clk 0:01:27]}  Bc1 {[%clk 0:01:59]} 26. b3 {[%clk 0:01:18]}  Bb2 {[%clk 0:01:59]} 27. c4 {[%clk 0:01:18]}  b6 {[%clk 0:01:57]} 28. h5 {[%clk 0:01:17]}  gxh5 {[%clk 0:01:55]} 29. Kh4 {[%clk 0:01:17]}  Kg7 {[%clk 0:01:56]} 30. Kxh5 {[%clk 0:01:17]}  Bc1 {[%clk 0:01:55]} 31. Kg4 {[%clk 0:01:12]}  h6 {[%clk 0:01:52]} 32. Kf5 {[%clk 0:01:12]}  Kf7 {[%clk 0:01:52]} 33. Bf3 {[%clk 0:01:12]}  a5 {[%clk 0:01:50]} 34. Bh5+ {[%clk 0:01:12]}  Ke7 {[%clk 0:01:49]} 35. Kg6 {[%clk 0:01:09]}  Bd2 {[%clk 0:01:48]} 36. Bf3 {[%clk 0:01:07]}  Bc1 {[%clk 0:01:48]} 37. g4 {[%clk 0:01:07]}  Bd2 {[%clk 0:01:47]} 38. Be4 {[%clk 0:01:06]}  Bc1 {[%clk 0:01:47]} 39. Bf5 {[%clk 0:01:07]}  Bd2 {[%clk 0:01:47]} 40. Be6 {[%clk 0:01:08]}  Bc1 {[%clk 0:01:48]} 41. Kf5 {[%clk 0:01:08]}  Bd2 {[%clk 0:01:48]} 42. Ke4 {[%clk 0:01:08]}  Bc1 {[%clk 0:01:49]} 43. Kf3 {[%clk 0:01:08]}  Bg5 {[%clk 0:01:50]} 44. Ke2 {[%clk 0:01:07]}  Bc1 {[%clk 0:01:48]} 45. Kd1 {[%clk 0:01:07]}  Bf4 {[%clk 0:01:47]} 46. Kc2 {[%clk 0:01:07]}  Kf6 {[%clk 0:01:48]} 47. Kb2 {[%clk 0:01:07]}  Kg5 {[%clk 0:01:49]} 48. Ka3 {[%clk 0:01:08]}  h5 {[%clk 0:01:49]} 49. gxh5 {[%clk 0:01:07]}  Kxh5 {[%clk 0:01:50]} 50. Ka4 {[%clk 0:01:07]}  e4 {[%clk 0:00:44]} 51. dxe4 {[%clk 0:01:06]}  Kg5 {[%clk 0:00:45]} 52. Kb5 {[%clk 0:01:06]}  Kf6 {[%clk 0:00:43]} 53. Kxb6 {[%clk 0:01:01]}  Bd2 {[%clk 0:00:43]} 54. Kc7 {[%clk 0:00:53]}  Ke5 {[%clk 0:00:42]} 55. a3 {[%clk 0:00:46]}  Bc3 {[%clk 0:00:40]} 56. Bf5 {[%clk 0:00:44]}  Bb2 {[%clk 0:00:36]} 57. b4 {[%clk 0:00:34]}  cxb4 {[%clk 0:00:33]} 58. axb4 {[%clk 0:00:34]}  a4 {[%clk 0:00:30]} 59. c5 {[%clk 0:00:31]}  a3 {[%clk 0:00:23]} 60. cxd6 {[%clk 0:00:31]}  a2 {[%clk 0:00:23]} 61. d7 {[%clk 0:00:31]}  a1=Q {[%clk 0:00:23]} 62. d8=Q {[%clk 0:00:31]}  Qa7+ {[%clk 0:00:21]} 63. Kc6 {[%clk 0:00:25]}  Qa6+ {[%clk 0:00:20]} 64. Qb6 {[%clk 0:00:22]}  Qc4+ {[%clk 0:00:12]} 65. Kb7 {[%clk 0:00:20]}  Bd4 {[%clk 0:00:09]} 66. Qc7+ {[%clk 0:00:19]}  Qxc7+ {[%clk 0:00:06]} 67. Kxc7 {[%clk 0:00:19]} 1-0


[Site "https://www.chess.com"]

[Event "Titled Tuesday Blitz June 13 Early 2023"]
[White "whiteglovethief"]
[Black "Melikhov, Evgeny V."]
[BlackFideId "4122046"]
[WhiteElo "2504"]
[BlackElo "2158"]
[Result "1-0"]
[Round "8"]
[TimeControl "180+2"]
[Date "2023.06.13"]
[WhiteClock "0:00:21"]
[BlackClock "0:00:42"]
[Board "103"]

1. d4 {[%clk 0:03:00]}  Nf6 {[%clk 0:02:59]} 2. c4 {[%clk 0:02:59]}  e6 {[%clk 0:02:59]} 3. Nf3 {[%clk 0:02:59]}  d5 {[%clk 0:02:59]} 4. g3 {[%clk 0:02:58]}  dxc4 {[%clk 0:02:58]} 5. Bg2 {[%clk 0:02:58]}  Nc6 {[%clk 0:02:59]} 6. O-O {[%clk 0:02:57]}  Rb8 {[%clk 0:02:59]} 7. a4 {[%clk 0:02:55]}  a6 {[%clk 0:02:59]} 8. Nc3 {[%clk 0:02:55]}  b5 {[%clk 0:02:59]} 9. axb5 {[%clk 0:02:55]}  axb5 {[%clk 0:02:59]} 10. Ne5 {[%clk 0:02:55]}  Nb4 {[%clk 0:02:57]} 11. Nc6 {[%clk 0:02:45]}  Nxc6 {[%clk 0:02:56]} 12. Bxc6+ {[%clk 0:02:46]}  Bd7 {[%clk 0:02:56]} 13. Bf3 {[%clk 0:02:30]}  c5 {[%clk 0:02:49]} 14. Bf4 {[%clk 0:02:20]}  Rc8 {[%clk 0:02:38]} 15. d5 {[%clk 0:02:20]}  b4 {[%clk 0:02:36]} 16. dxe6 {[%clk 0:02:10]}  fxe6 {[%clk 0:02:35]} 17. Ne4 {[%clk 0:02:05]}  Nxe4 {[%clk 0:02:25]} 18. Bxe4 {[%clk 0:02:03]}  Be7 {[%clk 0:02:17]} 19. Qc2 {[%clk 0:01:53]}  O-O {[%clk 0:02:13]} 20. Bxh7+ {[%clk 0:01:52]}  Kh8 {[%clk 0:02:13]} 21. Rfd1 {[%clk 0:01:49]}  Bf6 {[%clk 0:02:04]} 22. Ra7 {[%clk 0:01:30]}  Bd4 {[%clk 0:01:36]} 23. Qg6 {[%clk 0:01:06]}  Qe8 {[%clk 0:01:30]} 24. Rxd7 {[%clk 0:01:04]}  Qxg6 {[%clk 0:01:16]} 25. Bxg6 {[%clk 0:01:03]}  Bxb2 {[%clk 0:01:16]} 26. Bd6 {[%clk 0:00:47]}  Rfd8 {[%clk 0:01:03]} 27. Bxc5 {[%clk 0:00:44]}  Rxd7 {[%clk 0:00:59]} 28. Rxd7 {[%clk 0:00:45]}  b3 {[%clk 0:01:00]} 29. Rb7 {[%clk 0:00:36]}  Bf6 {[%clk 0:00:58]} 30. Ba3 {[%clk 0:00:30]}  c3 {[%clk 0:00:51]} 31. Rxb3 {[%clk 0:00:29]}  c2 {[%clk 0:00:52]} 32. Bc1 {[%clk 0:00:26]}  Ra8 {[%clk 0:00:50]} 33. Bxc2 {[%clk 0:00:24]}  g5 {[%clk 0:00:47]} 34. Bb2 {[%clk 0:00:22]}  Kg7 {[%clk 0:00:42]} 35. Rb7+ {[%clk 0:00:21]} 1-0


[Site "https://www.chess.com"]